fUST/lending_fUST_20250318
["ID","MTS","AMOUNT","RATE_DAILY","PERIOD"]
[356336009,1742290241380,-673.51,8.219e-05,2]
[356336010,1742290241389,-513.62562132,8.219e-05,2]
[356336011,1742290241399,-500.0,8.219e-05,2]
[356336012,1742290241408,-500.0,8.219e-05,2]
[356336013,1742290241418,-500.0,8.219e-05,2]
[356336014,1742290241427,-524.29832116,8.219e-05,2]
[356336015,1742290241437,-500.0,8.219e-05,2]
[356336016,1742290241447,-526.13418549,8.219e-05,2]
[356336017,1742290241456,-500.0,8.219e-05,2]
[356336018,1742290241466,-500.0,8.219e-05,2]
[356336019,1742290241475,-506.55639882,8.219e-05,2]
[356336020,1742290241485,-500.0,8.219e-05,2]
[356336021,1742290241494,-515.98368544,8.219e-05,2]
[356336022,1742290241503,-500.0,8.219e-05,2]
[356336023,1742290241512,-506.58190654,8.219e-05,2]
[356336024,1742290241522,-500.0,8.219e-05,2]
[356336025,1742290241531,-500.0,8.219e-05,2]
[356336026,1742290241541,-548.79763312,8.219e-05,2]
[356336027,1742290241550,-634.85280249,8.219e-05,2]
[356336028,1742290241560,-500.0,8.219e-05,2]
[356336029,1742290241570,-1417.64,8.219e-05,2]
[356336030,1742290241580,-235.31853667,8.219e-05,2]
[356336031,1742290241593,-264.68146333,8.219e-05,2]
[356336032,1742290241603,-500.0,8.219e-05,2]
[356336033,1742290241613,-229.81853667,8.219e-05,2]
[356336034,1742290241655,-0.00040242,8.219e-05,2]
[356336042,1742290243206,-270.18106091,8.219e-05,2]
[356336043,1742290243215,-500.0,8.219e-05,2]
[356336044,1742290243235,-1722.81893909,8.219e-05,2]
[356336059,1742290246205,-10849.45106091,8.219e-05,2]
[356336060,1742290246216,-501.70152859,8.219e-05,2]
[356336061,1742290246225,-500.0,8.219e-05,2]
[356336062,1742290246235,-500.0,8.219e-05,2]
[356336063,1742290246244,-505.01358758,8.219e-05,2]
[356336064,1742290246255,-1965.7,8.219e-05,2]
[356336065,1742290246266,-506.61180584,8.219e-05,2]
[356336066,1742290246276,-500.0,8.219e-05,2]
[356336067,1742290246286,-500.0,8.219e-05,2]
[356336068,1742290246295,-505.81677775,8.219e-05,2]
[356336069,1742290246306,-500.0,8.219e-05,2]
[356336070,1742290246316,-500.0,8.219e-05,2]
[356336071,1742290246325,-500.27153565,8.219e-05,2]
[356336072,1742290246334,-500.0,8.219e-05,2]
[356336073,1742290246346,-500.0,8.219e-05,2]
[356336074,1742290246356,-500.0,8.219e-05,2]
[356336075,1742290246366,-500.0,8.219e-05,2]
[356336076,1742290246380,-506.58358335,8.219e-05,2]
[356336077,1742290246390,-500.0,8.219e-05,2]
[356336078,1742290246400,-508.91583664,8.219e-05,2]
[356336079,1742290246409,-509.10756438,8.219e-05,2]
[356336080,1742290246420,-526.95043434,8.219e-05,2]
[356336081,1742290246430,-1575.61,8.219e-05,2]
[356336082,1742290246441,-501.02663083,8.219e-05,2]
[356336083,1742290246451,-500.0,8.219e-05,2]
[356336084,1742290246460,-4114.0,8.219e-05,2]
[356336085,1742290246469,-500.0,8.219e-05,2]
[356336086,1742290246479,-453.33986998,8.219e-05,2]
[356336087,1742290246488,-500.0,8.219e-05,2]
[356336088,1742290246498,-500.0,8.219e-05,2]
[356336089,1742290246508,-500.0,8.219e-05,2]
[356336090,1742290246517,-934.55,8.219e-05,2]
[356336091,1742290246526,-500.0,8.219e-05,2]
[356336092,1742290246536,-500.0,8.219e-05,2]
[356336093,1742290246546,-500.3019175,8.219e-05,2]
[356336094,1742290246555,-500.0,8.219e-05,2]
[356336095,1742290246565,-596.67,8.219e-05,2]
[356336096,1742290246575,-1394.87,8.219e-05,2]
[356336097,1742290246584,-3105.71,8.219e-05,2]
[356336098,1742290246594,-507.4346694,8.219e-05,2]
[356336099,1742290246604,-501.90911057,8.219e-05,2]
[356336100,1742290246614,-500.0,8.219e-05,2]
[356336101,1742290246623,-500.0,8.219e-05,2]
[356336102,1742290246633,-500.0,8.219e-05,2]
[356336103,1742290246643,-500.0,8.219e-05,2]
[356336104,1742290246652,-500.0,8.219e-05,2]
[356336105,1742290246662,-500.0,8.219e-05,2]
[356336106,1742290246672,-500.0,8.219e-05,2]
[356336107,1742290246681,-500.0,8.219e-05,2]
[356336108,1742290246691,-500.85107184,8.219e-05,2]
[356336109,1742290246702,-500.0,8.219e-05,2]
[356336110,1742290246711,-540.19,8.219e-05,2]
[356336111,1742290246720,-9649.54,8.219e-05,2]
[356336112,1742290246730,-500.0,8.219e-05,2]
[356336113,1742290246739,-500.0,8.219e-05,2]
[356336114,1742290246748,-553.48,8.219e-05,2]
[356336115,1742290246758,-500.0,8.219e-05,2]
[356336116,1742290246767,-585.94535198,8.219e-05,2]
[356336117,1742290246776,-500.0,8.219e-05,2]
[356336118,1742290246786,-500.0,8.219e-05,2]
[356336119,1742290246795,-511.75575664,8.219e-05,2]
[356336120,1742290246806,-500.0,8.219e-05,2]
[356336121,1742290246815,-500.0,8.219e-05,2]
[356336122,1742290246825,-671.99,8.219e-05,2]
[356336123,1742290246836,-500.0,8.219e-05,2]
[356336124,1742290246846,-500.0,8.219e-05,2]
[356336125,1742290246855,-7069.0194962,8.219e-05,2]
[356336126,1742290304216,153.73,0.000139,31]
[356336127,1742290304273,153.73,0.000139,31]
[356336128,1742290304337,153.73,0.000139,31]
[356336129,1742290304392,153.73,0.000139,31]
[356336130,1742290304453,153.73,0.000139,31]
[356336131,1742290304514,153.73,0.000139,31]
[356336132,1742290304568,153.73,0.000139,31]
[356336156,1742290906784,153.77,0.000139,31]
[356336157,1742290906839,153.77,0.000139,31]
[356336158,1742290906912,153.77,0.000139,31]
[356336159,1742290906962,153.77,0.000139,31]
[356336160,1742290907172,153.77,0.000139,31]
[356336161,1742290907237,153.77,0.000139,31]
[356336162,1742290907289,153.77,0.000139,31]
[356336163,1742291004058,-222.51392446,7.488e-05,2]
[356336165,1742291043820,-213.85502779,7.487e-05,2]
[356336166,1742291108546,-234.20810737,7.487e-05,2]
[356336173,1742291165337,-255.99154232,7.487e-05,2]
[356336174,1742291221913,-176.22338134,7.344e-05,2]
[356336175,1742291232232,-151.43978675,7.344e-05,2]
[356336176,1742291244286,-269.3797874,7e-05,2]
[356336177,1742291270299,553.6202126,6e-05,2]
[356336185,1742291432218,-475.9,7.344e-05,2]
[356336221,1742291432895,-218.49776043,7.344e-05,2]
[356336242,1742291440434,-0.00049696,7.344e-05,2]
[356336243,1742291441249,-187.25236954,7.344e-05,2]
[356336278,1742291508593,153.85,0.000139,31]
[356336279,1742291508639,153.85,0.000139,31]
[356336280,1742291508687,153.85,0.000139,31]
[356336281,1742291508749,153.85,0.000139,31]
[356336282,1742291508806,153.85,0.000139,31]
[356336283,1742291508852,153.85,0.000139,31]
[356336284,1742291508914,153.85,0.000139,31]
[356336295,1742292419410,-273.45116038,6.849e-05,2]
[356336307,1742292632601,-639.88519908,6.849e-05,2]
[356336308,1742292632680,-420.97072044,6.849e-05,2]
[356336309,1742292632690,-250.0,7.01e-05,2]
[356336310,1742292632700,-182.6956892,7.035e-05,2]
[356336311,1742292632709,-198.59968475,7.244e-05,2]
[356336312,1742292632719,-6663.58215438,7.344e-05,2]
[356336313,1742292632729,-300.0,7.396e-05,2]
[356336314,1742292632738,-24900.0,7.397e-05,2]
[356336316,1742292632748,-500.0,7.828e-05,2]
[356336318,1742292632757,-500.0,7.828e-05,2]
[356336320,1742292632766,-500.0,7.828e-05,2]
[356336322,1742292632776,-500.0,7.828e-05,2]
[356336323,1742292632786,-500.0,7.828e-05,2]
[356336324,1742292632796,-280.20033147,7.828e-05,2]
[356336326,1742292632805,-500.0,7.828e-05,2]
[356336328,1742292632815,-756.34145018,7.841e-05,2]
[356336330,1742292632825,-300.0,7.87e-05,2]
[356336332,1742292632834,-756.34145018,7.955e-05,2]
[356336334,1742292632845,-376.68318699,8.115e-05,2]
[356336336,1742292632854,-354.86623726,8.119e-05,2]
[356336338,1742292632864,-186.88883218,8.119e-05,2]
[356336340,1742292632873,-420.0,8.136e-05,2]
[356336342,1742292632883,-600.0,8.214e-05,2]
[356336344,1742292632892,-500.0,8.218e-05,2]
[356336346,1742292632902,-226.89320268,8.218e-05,2]
[356336348,1742292632911,-500.0,8.218e-05,2]
[356336350,1742292632920,-500.0,8.218e-05,2]
[356336352,1742292632929,-161.91038814,8.218e-05,2]
[356336354,1742292632938,-509.34307879,8.219e-05,2]
[356336356,1742292632947,-508.44303575,8.219e-05,2]
[356336358,1742292632957,-505.12661951,8.219e-05,2]
[356336360,1742292632967,-500.0,8.219e-05,2]
[356336362,1742292632978,-500.0,8.219e-05,2]
[356336363,1742292632992,-500.0,8.219e-05,2]
[356336365,1742292633003,-500.0,8.219e-05,2]
[356336367,1742292633013,-500.0,8.219e-05,2]
[356336369,1742292633026,-500.0,8.219e-05,2]
[356336370,1742292633037,-500.0,8.219e-05,2]
[356336372,1742292633047,-500.0,8.219e-05,2]
[356336374,1742292633058,-554.08203178,8.219e-05,2]
[356336375,1742292633069,-506.64878995,8.219e-05,2]
[356336376,1742292633079,-509.93831147,8.219e-05,2]
[356336377,1742292633088,-160.337269,8.219e-05,2]
[356336378,1742292633098,-505.31161105,8.219e-05,2]
[356336379,1742292633108,-501.45561398,8.219e-05,2]
[356336380,1742292633117,-501.58098571,8.219e-05,2]
[356336381,1742292633126,-501.33609256,8.219e-05,2]
[356336382,1742292633136,-505.65862483,8.219e-05,2]
[356336383,1742292633146,-500.0,8.219e-05,2]
[356336384,1742292633155,-506.07181585,8.219e-05,2]
[356336385,1742292633166,-500.0,8.219e-05,2]
[356336386,1742292633175,-518.16,8.219e-05,2]
[356336387,1742292633185,-500.0,8.219e-05,2]
[356336388,1742292633195,-500.0,8.219e-05,2]
[356336389,1742292633205,-500.0,8.219e-05,2]
[356336390,1742292633215,-500.0,8.219e-05,2]
[356336391,1742292633225,-508.97968959,8.219e-05,2]
[356336392,1742292633235,-504.00109947,8.219e-05,2]
[356336393,1742292633245,-500.0,8.219e-05,2]
[356336394,1742292633255,-500.0,8.219e-05,2]
[356336395,1742292633264,-468.09126734,8.219e-05,2]
[356336396,1742292633274,-514.9562668,8.219e-05,2]
[356336397,1742292633284,-500.0,8.219e-05,2]
[356336398,1742292633294,-500.0,8.219e-05,2]
[356336399,1742292633303,-500.0,8.219e-05,2]
[356336400,1742292633313,-500.0,8.219e-05,2]
[356336401,1742292633322,-500.0,8.219e-05,2]
[356336402,1742292633332,-508.02565925,8.219e-05,2]
[356336403,1742292633341,-501.60133253,8.219e-05,2]
[356336404,1742292633351,-500.0,8.219e-05,2]
[356336405,1742292633360,-500.0,8.219e-05,2]
[356336406,1742292633370,-508.58199529,8.219e-05,2]
[356336407,1742292633380,-1000.0,8.219e-05,2]
[356336408,1742292633390,-151.0,8.219e-05,2]
[356336409,1742292633400,-151.0,8.219e-05,2]
[356336410,1742292633410,-629.18570329,8.219e-05,2]
[356336411,1742292633419,-500.0,8.219e-05,2]
[356336412,1742292633429,-507.56686738,8.219e-05,2]
[356336413,1742292633439,-589.60307622,8.219e-05,2]
[356336414,1742292633448,-500.0,8.219e-05,2]
[356336415,1742292633458,-500.0,8.219e-05,2]
[356336416,1742292633468,-456.808,8.219e-05,2]
[356336417,1742292633478,-446.76597312,8.219e-05,2]
[356336418,1742292633488,-500.0,8.219e-05,2]
[356336419,1742292633498,-509.43124149,8.219e-05,2]
[356336420,1742292633508,-500.0,8.219e-05,2]
[356336421,1742292633518,-500.0,8.219e-05,2]
[356336422,1742292633529,-500.0,8.219e-05,2]
[356336423,1742292633539,-500.0,8.219e-05,2]
[356336424,1742292633549,-500.0,8.219e-05,2]
[356336425,1742292633560,-500.0,8.219e-05,2]
[356336426,1742292633571,-500.0,8.219e-05,2]
[356336427,1742292633581,-500.0,8.219e-05,2]
[356336428,1742292633591,-500.0,8.219e-05,2]
[356336429,1742292633601,-500.0,8.219e-05,2]
[356336430,1742292633611,-500.0,8.219e-05,2]
[356336431,1742292633621,-500.0,8.219e-05,2]
[356336432,1742292633631,-500.0,8.219e-05,2]
[356336433,1742292633642,-500.0,8.219e-05,2]
[356336434,1742292633652,-500.0,8.219e-05,2]
[356336435,1742292633662,-517.00639088,8.219e-05,2]
[356336436,1742292633672,-500.0,8.219e-05,2]
[356336437,1742292633682,-500.0,8.219e-05,2]
[356336438,1742292633696,-500.0,8.219e-05,2]
[356336439,1742292633706,-479.81676365,8.219e-05,2]
[356336440,1742292633717,-500.0,8.219e-05,2]
[356336441,1742292633727,-500.0,8.219e-05,2]
[356336442,1742292633736,-514.93,8.219e-05,2]
[356336443,1742292633746,-518.51712545,8.219e-05,2]
[356336444,1742292633756,-500.0,8.219e-05,2]
[356336445,1742292633766,-500.0,8.219e-05,2]
[356336446,1742292633776,-500.0,8.219e-05,2]
[356336447,1742292633788,-614.34,8.219e-05,2]
[356336448,1742292633798,-500.0,8.219e-05,2]
[356336449,1742292633808,-500.0,8.219e-05,2]
[356336450,1742292633818,-302.06755047,8.219e-05,2]
[356336451,1742292633828,-500.0,8.219e-05,2]
[356336452,1742292633838,-500.0,8.219e-05,2]
[356336453,1742292633848,-500.0,8.219e-05,2]
[356336454,1742292633858,-500.0,8.219e-05,2]
[356336455,1742292633868,-500.0,8.219e-05,2]
[356336456,1742292633879,-503.90243011,8.219e-05,2]
[356336457,1742292633889,-500.0,8.219e-05,2]
[356336458,1742292633900,-500.0,8.219e-05,2]
[356336459,1742292633910,-151.0,8.219e-05,2]
[356336460,1742292633920,-151.0,8.219e-05,2]
[356336461,1742292633930,-151.0,8.219e-05,2]
[356336462,1742292633940,-151.0,8.219e-05,2]
[356336463,1742292633950,-151.0,8.219e-05,2]
[356336464,1742292633959,-151.0,8.219e-05,2]
[356336465,1742292633969,-151.0,8.219e-05,2]
[356336466,1742292633980,-151.0,8.219e-05,2]
[356336467,1742292633993,-500.0,8.219e-05,2]
[356336468,1742292634003,-151.0,8.219e-05,2]
[356336469,1742292634013,-164.540499,8.219e-05,2]
[356336470,1742292634022,-500.0,8.219e-05,2]
[356336471,1742292634033,-500.0,8.219e-05,2]
[356336472,1742292634043,-500.0,8.219e-05,2]
[356336473,1742292634053,-519.77584307,8.219e-05,2]
[356336474,1742292634066,-500.0,8.219e-05,2]
[356336475,1742292634077,-531.09140539,8.219e-05,2]
[356336476,1742292634087,-500.0,8.219e-05,2]
[356336477,1742292634097,-500.0,8.219e-05,2]
[356336478,1742292634107,-500.0,8.219e-05,2]
[356336479,1742292634116,-500.0,8.219e-05,2]
[356336480,1742292634126,-500.0,8.219e-05,2]
[356336481,1742292634135,-4302.62,8.219e-05,2]
[356336482,1742292634144,-500.0,8.219e-05,2]
[356336483,1742292634153,-500.0,8.219e-05,2]
[356336484,1742292634165,-500.0,8.219e-05,2]
[356336485,1742292634175,-500.0,8.219e-05,2]
[356336486,1742292634184,-523.92959495,8.219e-05,2]
[356336487,1742292634194,-508.20487796,8.219e-05,2]
[356336488,1742292634203,-500.0,8.219e-05,2]
[356336489,1742292634213,-500.0,8.219e-05,2]
[356336490,1742292634223,-504.25765635,8.219e-05,2]
[356336491,1742292634234,-500.0,8.219e-05,2]
[356336492,1742292634244,-517.62635381,8.219e-05,2]
[356336493,1742292634254,-510.28086979,8.219e-05,2]
[356336494,1742292634264,-500.0,8.219e-05,2]
[356336495,1742292634274,-500.0,8.219e-05,2]
[356336496,1742292634284,-500.0,8.219e-05,2]
[356336497,1742292634294,-500.0,8.219e-05,2]
[356336498,1742292634304,-500.0,8.219e-05,2]
[356336499,1742292634314,-519.22542397,8.219e-05,2]
[356336500,1742292634324,-500.0,8.219e-05,2]
[356336501,1742292634334,-500.44725938,8.219e-05,2]
[356336502,1742292634344,-508.19022931,8.219e-05,2]
[356336503,1742292634355,-508.84512516,8.219e-05,2]
[356336504,1742292634366,-500.0,8.219e-05,2]
[356336505,1742292634376,-500.0,8.219e-05,2]
[356336506,1742292634386,-500.0,8.219e-05,2]
[356336507,1742292634397,-500.0,8.219e-05,2]
[356336508,1742292634408,-500.0,8.219e-05,2]
[356336509,1742292634417,-500.0,8.219e-05,2]
[356336510,1742292634427,-420.90212387,8.219e-05,2]
[356336511,1742292634437,-500.0,8.219e-05,2]
[356336512,1742292634447,-500.0,8.219e-05,2]
[356336513,1742292634457,-500.0,8.219e-05,2]
[356336514,1742292634467,-500.0,8.219e-05,2]
[356336515,1742292634477,-500.0,8.219e-05,2]
[356336516,1742292634487,-500.0,8.219e-05,2]
[356336517,1742292634496,-953.47,8.219e-05,2]
[356336518,1742292634506,-500.0,8.219e-05,2]
[356336519,1742292634516,-500.0,8.219e-05,2]
[356336520,1742292634526,-521.92909079,8.219e-05,2]
[356336521,1742292634536,-500.0,8.219e-05,2]
[356336522,1742292634546,-500.0,8.219e-05,2]
[356336523,1742292634556,-512.26761359,8.219e-05,2]
[356336524,1742292634567,-523.96104245,8.219e-05,2]
[356336525,1742292634577,-500.0,8.219e-05,2]
[356336526,1742292634587,-500.0,8.219e-05,2]
[356336527,1742292634597,-500.0,8.219e-05,2]
[356336528,1742292634607,-500.0,8.219e-05,2]
[356336529,1742292634617,-500.0,8.219e-05,2]
[356336530,1742292634627,-500.0,8.219e-05,2]
[356336531,1742292634638,-1083.91,8.219e-05,2]
[356336532,1742292634648,-500.0,8.219e-05,2]
[356336533,1742292634658,-500.0,8.219e-05,2]
[356336534,1742292634668,-500.0,8.219e-05,2]
[356336535,1742292634678,-503.18064653,8.219e-05,2]
[356336536,1742292634688,-1717.23,8.219e-05,2]
[356336537,1742292634699,-500.0,8.219e-05,2]
[356336538,1742292634711,-502.48133723,8.219e-05,2]
[356336539,1742292634720,-500.0,8.219e-05,2]
[356336540,1742292634730,-500.0,8.219e-05,2]
[356336541,1742292634739,-500.0,8.219e-05,2]
[356336542,1742292634901,-501.25668397,8.219e-05,2]
[356336543,1742292634942,-342.94455426,8.219e-05,2]
[356336544,1742292634952,-500.0,8.219e-05,2]
[356336545,1742292634962,-500.0,8.219e-05,2]
[356336546,1742292634971,-1085.32844,8.219e-05,2]
[356336547,1742292634985,-512.87745075,8.219e-05,2]
[356336548,1742292634994,-1085.32844,8.219e-05,2]
[356336549,1742292635012,-1085.32844,8.219e-05,2]
[356336550,1742292635026,-1085.32844,8.219e-05,2]
[356336551,1742292635039,-1085.32844,8.219e-05,2]
[356336552,1742292635049,-500.0,8.219e-05,2]
[356336553,1742292635062,-1085.32844,8.219e-05,2]
[356336554,1742292635072,-1085.32844,8.219e-05,2]
[356336555,1742292635082,-1085.32844,8.219e-05,2]
[356336556,1742292635092,-1085.32844,8.219e-05,2]
[356336557,1742292635101,-1085.32844,8.219e-05,2]
[356336558,1742292635111,-1085.32844,8.219e-05,2]
[356336559,1742292635121,-1085.32844,8.219e-05,2]
[356336560,1742292635133,-1085.32844,8.219e-05,2]
[356336561,1742292635145,-1085.32844,8.219e-05,2]
[356336562,1742292635157,-1085.32844,8.219e-05,2]
[356336563,1742292635168,-1085.32844,8.219e-05,2]
[356336564,1742292635181,-1085.32844,8.219e-05,2]
[356336565,1742292635194,-1085.32844,8.219e-05,2]
[356336566,1742292635204,-1085.32844,8.219e-05,2]
[356336567,1742292635214,-1085.328436,8.219e-05,2]
[356336568,1742292635224,-536.55935638,8.219e-05,2]
[356336569,1742292635234,-503.73035627,8.219e-05,2]
[356336570,1742292635243,-500.0,8.219e-05,2]
[356336571,1742292635253,-500.0,8.219e-05,2]
[356336572,1742292635263,-500.0,8.219e-05,2]
[356336573,1742292635272,-518.71984469,8.219e-05,2]
[356336574,1742292635283,-500.0,8.219e-05,2]
[356336575,1742292635293,-383.7086717,8.219e-05,2]
[356336576,1742292635302,-500.0,8.219e-05,2]
[356336577,1742292635312,-535.64232774,8.219e-05,2]
[356336578,1742292635321,-502.26302919,8.219e-05,2]
[356336579,1742292635330,-500.0,8.219e-05,2]
[356336580,1742292635340,-502.38280959,8.219e-05,2]
[356336581,1742292635349,-500.0,8.219e-05,2]
[356336582,1742292635359,-514.10031227,8.219e-05,2]
[356336583,1742292635368,-203.48237797,8.219e-05,2]
[356336584,1742292635378,-500.0,8.219e-05,2]
[356336585,1742292635387,-500.0,8.219e-05,2]
[356336586,1742292635396,-500.0,8.219e-05,2]
[356336587,1742292635406,-12364.48,8.219e-05,2]
[356336588,1742292635415,-504.09997755,8.219e-05,2]
[356336589,1742292635424,-2096.09,8.219e-05,2]
[356336590,1742292635434,-512.59548309,8.219e-05,2]
[356336591,1742292635443,-349.04962691,8.219e-05,2]
[356336592,1742292635453,-500.0,8.219e-05,2]
[356336593,1742292635463,-500.0,8.219e-05,2]
[356336594,1742292635472,-509.99328296,8.219e-05,2]
[356336595,1742292635482,-1274.94,8.219e-05,2]
[356336596,1742292635491,-500.0,8.219e-05,2]
[356336597,1742292635501,-510.4225269,8.219e-05,2]
[356336598,1742292635511,-42613.11,8.219e-05,2]
[356336599,1742292635519,-500.0,8.219e-05,2]
[356336600,1742292635529,-500.0,8.219e-05,2]
[356336601,1742292635538,-500.0,8.219e-05,2]
[356336602,1742292635547,-528.13772225,8.219e-05,2]
[356336603,1742292635557,-597.33,8.219e-05,2]
[356336604,1742292635566,-506.34760249,8.219e-05,2]
[356336605,1742292635575,-515.93384517,8.219e-05,2]
[356336606,1742292635585,-500.0,8.219e-05,2]
[356336607,1742292635594,-706.49,8.219e-05,2]
[356336608,1742292635604,-500.0,8.219e-05,2]
[356336609,1742292635614,-500.0,8.219e-05,2]
[356336610,1742292635624,-500.0,8.219e-05,2]
[356336611,1742292635634,-500.0,8.219e-05,2]
[356336612,1742292635644,-500.0,8.219e-05,2]
[356336613,1742292635654,-500.0,8.219e-05,2]
[356336614,1742292635663,-500.0,8.219e-05,2]
[356336615,1742292635672,-500.0,8.219e-05,2]
[356336616,1742292635681,-509.68969341,8.219e-05,2]
[356336617,1742292635691,-512.00857925,8.219e-05,2]
[356336618,1742292635701,-500.0,8.219e-05,2]
[356336619,1742292635711,-500.0,8.219e-05,2]
[356336620,1742292635719,-509.59338312,8.219e-05,2]
[356336621,1742292635729,-500.0,8.219e-05,2]
[356336622,1742292635738,-500.0,8.219e-05,2]
[356336623,1742292635747,-3256.79,8.219e-05,2]
[356336624,1742292635756,-368.47892168,8.219e-05,2]
[356336625,1742292635765,-500.0,8.219e-05,2]
[356336626,1742292635774,-500.0,8.219e-05,2]
[356336627,1742292635785,-500.0,8.219e-05,2]
[356336628,1742292635794,-1886.65,8.219e-05,2]
[356336629,1742292635803,-448.060297,8.219e-05,2]
[356336630,1742292635813,-448.060297,8.219e-05,2]
[356336631,1742292635824,-448.060297,8.219e-05,2]
[356336632,1742292635837,-500.0,8.219e-05,2]
[356336633,1742292635850,-448.060297,8.219e-05,2]
[356336634,1742292635863,-508.41843192,8.219e-05,2]
[356336635,1742292635876,-448.060297,8.219e-05,2]
[356336636,1742292635891,-448.060297,8.219e-05,2]
[356336637,1742292635900,-448.060297,8.219e-05,2]
[356336638,1742292635910,-448.060297,8.219e-05,2]
[356336639,1742292635919,-448.060297,8.219e-05,2]
[356336640,1742292635929,-500.0,8.219e-05,2]
[356336641,1742292635939,-500.0,8.219e-05,2]
[356336642,1742292635948,-448.060297,8.219e-05,2]
[356336643,1742292635957,-500.0,8.219e-05,2]
[356336644,1742292635966,-448.060297,8.219e-05,2]
[356336645,1742292635975,-500.0,8.219e-05,2]
[356336646,1742292635988,-448.060297,8.219e-05,2]
[356336647,1742292635998,-448.060297,8.219e-05,2]
[356336648,1742292636008,-448.060297,8.219e-05,2]
[356336649,1742292636018,-448.060297,8.219e-05,2]
[356336650,1742292636029,-544.53,8.219e-05,2]
[356336651,1742292636039,-448.060297,8.219e-05,2]
[356336652,1742292636048,-448.060297,8.219e-05,2]
[356336653,1742292636058,-694.04,8.219e-05,2]
[356336654,1742292636070,-448.060297,8.219e-05,2]
[356336655,1742292636079,-500.0,8.219e-05,2]
[356336656,1742292636089,-722.13,8.219e-05,2]
[356336657,1742292636099,-515.41231679,8.219e-05,2]
[356336658,1742292636108,-448.060297,8.219e-05,2]
[356336659,1742292636118,-448.060305,8.219e-05,2]
[356336660,1742292636128,-500.0,8.219e-05,2]
[356336661,1742292636137,-500.0,8.219e-05,2]
[356336662,1742292636147,-508.53333885,8.219e-05,2]
[356336663,1742292636158,-1496.1,8.219e-05,2]
[356336664,1742292636168,-500.0,8.219e-05,2]
[356336665,1742292636178,-500.0,8.219e-05,2]
[356336666,1742292636189,-500.0,8.219e-05,2]
[356336667,1742292636198,-500.0,8.219e-05,2]
[356336668,1742292636208,-500.0,8.219e-05,2]
[356336669,1742292636218,-187.16,8.219e-05,2]
[356336670,1742292636228,-587.01,8.219e-05,2]
[356336671,1742292636238,-155.61249,8.219e-05,2]
[356336672,1742292636247,-9477.64,8.219e-05,2]
[356336673,1742292636256,-921.68,8.219e-05,2]
[356336674,1742292636266,-500.0,8.219e-05,2]
[356336675,1742292636275,-500.0,8.219e-05,2]
[356336676,1742292636284,-500.0,8.219e-05,2]
[356336677,1742292636293,-399.59192122,8.219e-05,2]
[356336678,1742292636302,-500.0,8.219e-05,2]
[356336679,1742292636311,-500.0,8.219e-05,2]
[356336680,1742292636320,-500.0,8.219e-05,2]
[356336681,1742292636331,-1793.59,8.219e-05,2]
[356336682,1742292636339,-500.0,8.219e-05,2]
[356336683,1742292636349,-861.27,8.219e-05,2]
[356336684,1742292636358,-500.0,8.219e-05,2]
[356336685,1742292636367,-500.0,8.219e-05,2]
[356336686,1742292636376,-508.86471597,8.219e-05,2]
[356336687,1742292636385,-500.0,8.219e-05,2]
[356336688,1742292636394,-500.0,8.219e-05,2]
[356336689,1742292636404,-628.21068554,8.219e-05,2]
[356336690,1742292636413,-500.0,8.219e-05,2]
[356336691,1742292636422,-500.0,8.219e-05,2]
[356336692,1742292636431,-500.0,8.219e-05,2]
[356336693,1742292636440,-500.0,8.219e-05,2]
[356336694,1742292636449,-500.0,8.219e-05,2]
[356336695,1742292636459,-622.2,8.269e-05,2]
[356336696,1742292636468,-645.2214,8.324e-05,2]
[356336697,1742292636477,-203.48237796,8.356e-05,2]
[356336698,1742292636487,-669.0945918,8.379e-05,2]
[356336699,1742292636497,-3000.0,8.393e-05,2]
[356336700,1742292636507,-756.34145018,8.431e-05,2]
[356336701,1742292636516,-693.8510917,8.434e-05,2]
[356336702,1742292636526,-1027.32051023,8.473e-05,2]
[356336703,1742292636535,-719.52358209,8.489e-05,2]
[356336704,1742292636544,-500.0,8.493e-05,2]